[Event "44th Chess Olympiad Open 2022"]
[Site "Chennai"]
[Date "2022.08.05"]
[Round "7.67"]
[White "Rurik Capella"]
[Black "Stetsenko, Ilya"]
[Result "0-1"]
[ECO "B12"]
[WhiteElo "1952"]
[BlackElo "1683"]
[Annotator "TA"]
[PlyCount "108"]
[EventDate "2022.07.29"]
[EventType "team-tourn"]
[EventCountry "IND"]
[SourceTitle "playchess.com"]
[Source "ChessBase"]
[SourceQuality "1"]
[WhiteTeam "Netherlands Antilles"]
[BlackTeam "ARU"]
[WhiteTeamCountry "AHO"]
[TimeControl "40/5400+30:1800+30"]

{[%evp 11,108,25,42,25,37,3,28,21,19,26,27,0,20,-5,78,74,85,58,54,56,71,53,119,-11,16,26,27,16,97,84,87,88,90,25,26,36,24,34,157,22,18,8,10,20,98,79,83,55,83,65,91,3,25,19,10,0,0,-35,9,-34,-40,-399,-300,-399,-393,-399,-382,-388,-388,-384,-371,-568,-390,-553,-454,-407,-406,-685,-649,-666,-639,-669,-648,-760,-747,-1074,-1040,-1050,-1040,-1926,-1920,-29965,-29967,-29976,-29974,-29974,-29975,-29975,-29974]} 1. e4 {[%emt 0:00:03]} c6 {[%emt 0:00:09]} 2. d4 {[%emt 0:00:04]} d5 {[%emt 0:00:02]} 3. e5 {[%emt 0:00:08]} Bf5 {[%emt 0:00:02]} 4. Nf3 {[%emt 0:00:21]} e6 {[%emt 0:00:03]} 5. Be2 {[%emt 0:00:20]} Ne7 {[%emt 0:00:04]} 6. O-O {[%emt 0:00:28]} h6 $1 {[%emt 0:00:08][%mdl 4] now scores much better than the old 6...Nd7.} 7. Nbd2 {[%emt 0:01:39] B12: Caro-Kann: Advance Variation.} Nd7 {[%emt 0:00:27]} 8. c4 {[%emt 0:00:24]} Bh7 {[%emt 0:03:32]} 9. Re1 {[%emt 0:04:26] White has an edge.} Nf5 {[%emt 0:05:04] [#]} 10. cxd5 $146 {[%emt 0:10:54]} ({Predecessor:} 10. Qb3 Qc7 11. a4 Be7 12. Qc3 a5 13. cxd5 exd5 14. Bd3 g6 15. Qc2 O-O-O 16. Nb3 Kb8 17. Bd2 b6 18. Rac1 Kb7 19. e6 fxe6 20. Rxe6 Bg5 21. Rxc6 Qb8 22. Rc7+ {1-0 (22) Nowak,I (2170)-Yangibayev,N (945) LSS email 2012}) 10... cxd5 {[%emt 0:00:55]} 11. Bb5 {[%emt 0:01:28]} Bb4 {[%emt 0:13:30]} 12. Qa4 {[%emt 0:02:48]} Bxd2 {[%emt 0:01:39]} (12... Be7 $11) 13. Bxd2 $16 {[%emt 0:00:26] aiming for Ba5.} a6 {[%emt 0:03:58]} 14. Bxd7+ {[%emt 0:07:47]} Qxd7 {[%emt 0:00:04]} 15. Qa3 {[%emt 0:00:38]} a5 {[%emt 0:06:15]} 16. Rac1 {[%emt 0:05:09]} ({Don't go for} 16. Bxa5 $2 Qb5 17. b4 b6 $19) 16... Ne7 {[%emt 0:01:04]} (16... Qd8 $14) 17. Rc5 {[%emt 0:01:56]} ({Wrong is} 17. Bxa5 $2 b6 18. Qd6 bxa5 $19) (17. Bb4 $1 $16) 17... b6 {[%emt 0:01:08]} 18. Rc3 {[%emt 0:04:21]} O-O {[%emt 0:00:11]} 19. Qd6 {[%emt 0:06:58]} Qxd6 {[%emt 0:03:47]} (19... Qe8 $11) 20. exd6 {[%emt 0:00:01]} Nf5 {[%emt 0:00:17]} 21. Rc6 {[%emt 0:05:14] Strongly threatening g4.} Rad8 {[%emt 0:12:38]} 22. Bf4 {[%emt 0:11:09]} (22. Rxb6 $16 Nxd6 23. b3 (23. Bxa5 Nc4 $15)) 22... g5 $11 {[%emt 0:00:07]} 23. Bg3 {[%emt 0:00:14]} g4 {[%emt 0:00:56]} 24. Ne5 {[%emt 0:01:17]} Nxd4 {[%emt 0:17:03] [#]} (24... h5 $14) 25. Rxb6 {[%emt 0:00:43]} (25. Rc7 $1 $16) 25... h5 {[%emt 0:01:08]} 26. Nc6 {[%emt 0:09:50]} (26. Rb7 {feels hotter.} f6 27. Nd7 Rf7 28. Nxf6+ Rxf6 29. Be5) 26... Nxc6 {[%emt 0:00:07]} 27. Rxc6 {[%emt 0:00:02]} Rd7 {[%emt 0:01:15]} (27... Bf5 $11 {keeps the balance.}) 28. Bh4 {[%emt 0:10:52]} Kg7 {[%emt 0:01:53]} 29. Be7 {[%emt 0:01:51]} Ra8 {[%emt 0:04:16]} 30. Rec1 {[%emt 0:01:18] Rc7 is the strong threat.} Bf5 {[%emt 0:07:01]} 31. Kf1 {[%emt 0:05:06]} ({Better is} 31. Rc7 $16 Ra7 {[#]} 32. Bd8 $1) 31... a4 {[%emt 0:04:18]} 32. Rc7 {[%emt 0:02:43]} Ra7 $1 {[%emt 0:00:40]} 33. Ke2 {[%emt 0:01:32]} e5 {[%emt 0:01:25]} 34. f3 {[%emt 0:00:34]} Be6 {[%emt 0:01:17]} 35. h3 {[%emt 0:02:04]} Raxc7 {[%emt 0:03:04]} 36. dxc7 $4 {[%emt 0:01:17][%mdl 8192] This costs White the game.} (36. Rxc7 $15 gxh3 37. gxh3) 36... Rxe7 {[%emt 0:00:14]} 37. c8=Q {[%emt 0:00:03]} Bxc8 {[%emt 0:00:05]} 38. Rxc8 {[%emt 0:00:00]} gxh3 {[%emt 0:00:54]} 39. gxh3 $19 {[%emt 0:00:08][%mdl 4096] Endgame KR-KR} Rb7 {[%emt 0:00:12]} 40. Rc2 {[%emt 0:00:50]} Kf6 {[%emt 0:03:06]} 41. Kd3 {[%emt 0:30:39]} (41. f4 {was forced.} exf4 42. Kf3) 41... Rb5 {[%emt 0:31:50]} 42. Rg2 {[%emt 0:02:35]} (42. f4 {keeps fighting.} exf4 43. Ke2) 42... Rb4 {[%emt 0:01:55]} 43. Kc3 {[%emt 0:00:31]} Rf4 {[%emt 0:00:44]} 44. b4 {[%emt 0:00:00]} (44. Rf2 $142) 44... Rc4+ {[%emt 0:00:00]} 45. Kd3 {[%emt 0:00:00]} Rxb4 {[%emt 0:00:00]} 46. Rc2 {[%emt 0:00:00]} Rd4+ {[%emt 0:00:00]} 47. Ke3 {[%emt 0:00:00]} Rc4 {[%emt 0:00:00] Against Rc5} 48. Rd2 {[%emt 0:00:00]} Rc3+ {[%emt 0:00:00]} 49. Kf2 {[%emt 0:00:00]} d4 {[%emt 0:00:00][%cal Bd5d4,Bd4d3][%mdl 32]} 50. h4 {[%emt 0:00:00]} Kf5 {[%emt 0:00:00] ( -> ...a3)} 51. Kg3 {[%emt 0:00:00]} a3 {[%emt 0:00:00] Black mates.} 52. Re2 {[%emt 0:00:00]} f6 {[%emt 0:00:00]} 53. Kf2 {[%emt 0:00:00]} d3 {[%emt 0:00:00]} 54. Re1 {[%emt 0:00:00]} Rc2+ {[%emt 0:00:00] Weighted Error Value: White=0.91/Black=0.29 (precise)} 0-1

[Event "44th Chess Olympiad Open 2022"]
[Site "Chennai"]
[Date "2022.08.05"]
[Round "7.67"]
[White "Croes, Octavio"]
[Black "Ursus van Bemmelen"]
[Result "0-1"]
[ECO "E01"]
[WhiteElo "1794"]
[BlackElo "2145"]
[Annotator "TA"]
[PlyCount "52"]
[EventDate "2022.07.29"]
[EventType "team-tourn"]
[EventCountry "IND"]
[SourceTitle "playchess.com"]
[Source "ChessBase"]
[SourceQuality "1"]
[WhiteTeam "ARU"]
[BlackTeam "Netherlands Antilles"]
[BlackTeamCountry "AHO"]
[TimeControl "40/5400+30:1800+30"]

{[%evp 9,52,0,17,24,18,13,27,18,22,19,32,27,42,-8,0,-3,0,-31,-20,-39,-3,-29,-8,-40,-24,-40,-35,-36,-42,-46,-43,-73,-14,-43,-43,-287,-295,-424,-426,-432,-432,-430,-427,-419,-420]} 1. d4 {[%emt 0:00:01]} d5 {[%emt 0:00:10]} 2. c4 {[%emt 0:00:05]} e6 {[%emt 0:00:09]} 3. Nf3 {[%emt 0:00:07]} Nf6 {[%emt 0:00:09]} 4. g3 {[%emt 0:00:07]} Bb4+ {[%emt 0:00:40]} 5. Bd2 {[%emt 0:00:11]} Bd6 {[%emt 0:00:23]} 6. Bg2 {[%emt 0:00:33] E01: Catalan: Early deviations.} O-O {[%emt 0:00:20]} 7. O-O {[%emt 0:02:00]} c6 {[%emt 0:00:08]} 8. Bg5 {[%emt 0:05:37] White has an edge.} Nbd7 {[%emt 0:06:08]} 9. Qc2 {[%emt 0:00:30]} h6 {[%emt 0:02:20]} 10. Bxf6 {[%emt 0:00:24]} Qxf6 {[%emt 0:02:28] [#]} 11. cxd5 $146 {[%emt 0:07:06]} (11. Nbd2 $14) ({Predecessor (2):} 11. Nbd2 Bc7 12. e4 dxe4 13. Nxe4 Qe7 14. Rfe1 Rd8 15. Rad1 Nf8 16. h4 f6 17. a3 {½-½ (48) Brunello,S (2562)-Neiksans,A (2602) Reykjavik 2015}) 11... exd5 $11 {[%emt 0:02:18]} 12. Nc3 {[%emt 0:00:52]} Qd8 {[%emt 0:14:14]} 13. e3 {[%emt 0:15:20]} Re8 {[%emt 0:03:47]} 14. a3 {[%emt 0:00:40]} a5 {[%emt 0:14:15]} 15. Rab1 {[%emt 0:01:01]} Nb6 {[%emt 0:05:59]} 16. Nd2 {[%emt 0:11:18]} g6 {[%emt 0:06:57]} 17. e4 {[%emt 0:06:43]} dxe4 {[%emt 0:00:23]} 18. Ndxe4 {[%emt 0:00:21]} Bf8 {[%emt 0:02:20]} 19. Rbd1 {[%emt 0:02:13][%cal Od4d5]} Bf5 {[%emt 0:04:27]} 20. Qd3 {[%emt 0:10:39]} Be6 {[%emt 0:06:11]} ({Black should play} 20... Bg7 $17) 21. Rfe1 {[%emt 0:02:10]} Bb3 {[%emt 0:00:30]} 22. Rd2 {[%emt 0:04:06] [#] Loses the game.} (22. Ra1 $15) 22... f5 $1 $19 {[%emt 0:02:22]} 23. Nf6+ {[%emt 0:19:03]} (23. d5 {is a better defense.} Bc4 24. Qc2 Bxd5 25. Nxd5 cxd5 26. Red1 fxe4 27. Bxe4) 23... Qxf6 {[%emt 0:00:28]} 24. Ne4 {[%emt 0:00:04]} Qf7 {[%emt 0:02:19]} ({Weaker is} 24... Rxe4 25. Qxb3+ Qf7 26. Qxf7+ Kxf7 27. Bxe4 fxe4 28. Rxe4 $17) 25. Nf6+ {[%emt 0:00:18]} Qxf6 {[%emt 0:00:10]} 26. Qxb3+ {[%emt 0:00:04]} Qf7 {[%emt 0:00:36] Weighted Error Value: White=0.37/Black=0.12 (very precise)} 0-1

[Event "44th Chess Olympiad Open 2022"]
[Site "Chennai"]
[Date "2022.08.05"]
[Round "7.68"]
[White "Chimthere, Alfred Charles"]
[Black "Kannappan, Thanneermalai"]
[Result "0-1"]
[ECO "D87"]
[WhiteElo "2035"]
[BlackElo "1699"]
[Annotator "TA"]
[PlyCount "118"]
[EventDate "2022.07.29"]
[EventType "team-tourn"]
[EventCountry "IND"]
[SourceTitle "playchess.com"]
[Source "ChessBase"]
[SourceQuality "1"]
[WhiteTeam "MAW"]
[BlackTeam "Hong Kong"]
[BlackTeamCountry "HKG"]
[TimeControl "40/5400+30:1800+30"]

{[%evp 21,118,33,35,0,0,5,30,0,57,62,70,34,69,0,0,0,8,-28,33,-24,-22,-22,-20,-29,-18,-23,26,-48,0,-229,-240,-233,-227,-234,-229,-250,-250,-279,-220,-220,-176,-176,-170,-221,-182,-203,-206,-208,-187,-247,-254,-251,-251,-350,-340,-350,-350,-418,-411,-411,-397,-463,-441,-475,-465,-602,-596,-623,-601,-631,-628,-624,-622,-563,0,-525,-533,-614,-590,-675,-649,-781,-765,-732,-705,-4810,-3590,-4702,-1259,-29984,-29974,-29971,-29975,-29980,-29981,-29981,-29982,-29981,-29982]} 1. d4 {[%emt 0:00:16]} Nf6 {[%emt 0:00:22]} 2. c4 {[%emt 0:00:25]} g6 {[%emt 0:00:18]} 3. Nc3 {[%emt 0:00:20]} d5 {[%emt 0:00:25]} 4. cxd5 {[%emt 0:01:07]} Nxd5 {[%emt 0:00:18]} 5. e4 {[%emt 0:00:28]} Nxc3 {[%emt 0:00:27]} 6. bxc3 {[%emt 0:00:02]} Bg7 {[%emt 0:00:54]} 7. Bc4 {[%emt 0:00:24]} c5 {[%emt 0:00:34]} 8. Ne2 {[%emt 0:00:47]} Nc6 {[%emt 0:00:26]} 9. Be3 {[%emt 0:00:39]} Bg4 {[%emt 0:00:23]} 10. f3 {[%emt 0:00:15]} Bd7 {[%emt 0:00:11]} 11. O-O {[%emt 0:00:24]} O-O {[%emt 0:00:17]} 12. Qd2 {[%emt 0:01:00] D87: Exchange Grünfeld: Classical Line: Variations without ...cxd4.} Qa5 {[%emt 0:01:10]} 13. Rfd1 {[%emt 0:07:45]} b5 {[%emt 0:15:04]} 14. Bd5 {[%emt 0:07:35] [#] White has an edge.} (14. dxc5 $5 {[%cal Rd2d7]} bxc4 15. Qxd7 $14) 14... Rfd8 $146 {[%emt 0:05:19]} (14... e6 $11) ({Predecessor:} 14... cxd4 15. cxd4 Rac8 16. Bxc6 Qxd2 17. Rxd2 Rxc6 18. Rb1 Rc4 19. d5 a6 20. Bd4 e5 21. dxe6 Bxe6 22. Bxg7 Kxg7 {0-1 (55) Lukachewski Junior,W (2042)-Cortes Orihuela,J (2205) Brasilia 2016}) 15. dxc5 $14 {[%emt 0:04:11]} Rac8 {[%emt 0:10:31]} 16. Rac1 {[%emt 0:01:20]} (16. Nd4 $5 {[%cal Rd5c6]} Ne5 17. Bg5 $16) 16... Ne5 {[%emt 0:04:23]} 17. Nd4 {[%emt 0:14:55]} (17. Bg5 $14) 17... Nc4 $1 $11 {[%emt 0:09:31]} 18. Bxc4 {[%emt 0:11:13]} bxc4 {[%emt 0:00:07]} 19. Qe2 {[%emt 0:00:20]} e5 {[%emt 0:05:30]} (19... Rxc5 $11 20. f4 Rcc8) 20. Qxc4 {[%emt 0:05:55]} exd4 {[%emt 0:07:36]} 21. cxd4 {[%emt 0:00:10]} Bb5 {[%emt 0:06:01]} 22. Qc2 {[%emt 0:01:51]} Ba4 {[%emt 0:02:00]} 23. Qd2 {[%emt 0:00:20]} Qb5 {[%emt 0:08:30]} (23... Qxd2 $142 24. Rxd2 f5) 24. Qd3 {[%emt 0:02:41]} ({White should play} 24. Re1 $11) 24... Qb2 {[%emt 0:04:28]} (24... Qxd3 $15 25. Rxd3 f5) 25. Qd2 $2 {[%emt 0:00:27] White is on the road to losing.} (25. Rb1 $1 $11 {and White stays safe.} Qc2 26. Qa6) 25... Rb8 $19 {[%emt 0:07:03]} 26. Qxb2 {[%emt 0:04:33]} Rxb2 {[%emt 0:00:05]} 27. Rd3 {[%emt 0:00:08]} Bb5 {[%emt 0:01:58] A strong pair of Bishops.} (27... Rxa2 28. c6 $11) 28. Rdd1 {[%emt 0:06:20]} Be2 {[%emt 0:01:06]} (28... Rxa2 29. c6 $11) 29. Rb1 {[%emt 0:13:08] [#]} Bxd4 {[%emt 0:05:02][%mdl 512]} 30. Bxd4 {[%emt 0:00:34]} Rxb1 {[%emt 0:01:12]} ({Not} 30... Rxa2 {[#]} 31. c6 $1 Rc2 32. c7 Rxc7 33. Rd2 $14) 31. Rxb1 {[%emt 0:00:32] aiming for Be3.} Rxd4 {[%emt 0:00:06][%mdl 4096] Endgame KRB-KR} 32. Rb2 {[%emt 0:01:07]} (32. Rb7 {might work better.}) 32... Bd1 {[%emt 0:01:00]} 33. Rb8+ {[%emt 0:03:23]} Kg7 {[%emt 0:00:05]} 34. Rb7 {[%emt 0:00:53]} a6 {[%emt 0:02:17]} 35. Kf2 {[%emt 0:04:40]} (35. e5 {keeps fighting.}) 35... Ba4 {[%emt 0:00:45]} 36. e5 {[%emt 0:04:07]} Kf8 {[%emt 0:00:35]} 37. Rb6 {[%emt 0:01:27]} Bb5 {[%emt 0:00:33]} ({Don't blunder} 37... Rd2+ $2 38. Kg3 $19) 38. Ke3 {[%emt 0:00:58]} Rc4 {[%emt 0:00:22]} 39. h4 {[%emt 0:00:36]} Rxc5 {[%emt 0:00:27]} 40. a4 {[%emt 0:00:36]} Bf1 {[%emt 0:00:32]} 41. Kf2 {[%emt 0:30:39]} Bc4 {[%emt 0:30:20]} 42. Ke3 {[%emt 0:00:59]} Ra5 {[%emt 0:01:10]} 43. h5 {[%emt 0:01:58]} Kg7 {[%emt 0:01:28]} 44. hxg6 {[%emt 0:00:00]} hxg6 {[%emt 0:00:00]} 45. Rb4 {[%emt 0:00:00]} Be6 {[%emt 0:00:00]} ({Stronger than} 45... Rxe5+ 46. Kd4 Rg5 47. Rxc4 $11) 46. f4 {[%emt 0:00:00]} Bd7 {[%emt 0:00:00]} 47. Rb7 {[%emt 0:00:00]} Be6 {[%emt 0:00:00]} 48. Rb4 {[%emt 0:00:00]} Kf8 {[%emt 0:00:00]} 49. Kf3 {[%emt 0:00:00]} Bd7 {[%emt 0:00:00]} 50. Rd4 {[%emt 0:00:00]} Ke7 {[%emt 0:00:00]} 51. g4 {[%emt 0:00:00]} Rxa4 {[%emt 0:00:00]} 52. Rd3 {[%emt 0:00:00]} a5 {[%emt 0:00:00][%cal Ba6a5,Ba5a4][%mdl 32] ...Ra1 is the strong threat.} 53. Kg3 {[%emt 0:00:00]} Ra1 {[%emt 0:00:00]} 54. Kh4 {[%emt 0:00:00]} Rg1 {[%emt 0:00:00]} 55. f5 {[%emt 0:00:00]} gxf5 {[%emt 0:00:00] Black mates.} 56. gxf5 {[%emt 0:00:00]} Bxf5 {[%emt 0:00:00]} 57. Rd5 {[%emt 0:00:00]} a4 {[%emt 0:00:00]} 58. Ra5 {[%emt 0:00:00]} Bd7 {[%emt 0:00:00]} 59. Ra6 {[%emt 0:00:00]} Ra1 {[%emt 0:00:00] Weighted Error Value: White=0.42/Black=0.24 (precise)} 0-1

[Event "44th Chess Olympiad Open 2022"]
[Site "Chennai"]
[Date "2022.08.05"]
[Round "7.68"]
[White "Lau, Lut Yin Luke"]
[Black "Mwale, Joseph"]
[Result "1-0"]
[ECO "C54"]
[WhiteElo "2027"]
[BlackElo "2131"]
[Annotator "TA"]
[PlyCount "133"]
[EventDate "2022.07.29"]
[EventType "team-tourn"]
[EventCountry "IND"]
[SourceTitle "playchess.com"]
[Source "ChessBase"]
[SourceQuality "1"]
[WhiteTeam "Hong Kong"]
[BlackTeam "MAW"]
[WhiteTeamCountry "HKG"]
[TimeControl "40/5400+30:1800+30"]

{[%evp 11,133,10,14,5,16,0,0,0,0,0,-16,-10,-10,-14,-13,-10,-12,-8,22,14,7,4,3,3,16,17,106,30,119,119,117,117,120,120,120,126,120,115,118,44,120,125,130,123,120,106,110,102,107,106,95,-81,109,106,98,102,129,120,143,126,190,171,193,204,213,143,143,143,143,143,143,143,143,143,166,157,150,143,143,143,143,143,179,177,171,171,180,171,157,157,157,143,144,144,170,162,162,174,194,196,230,135,214,226,229,218,218,214,217,212,192,152,140,100,141,135,4745,4738,2837,2338,4714,4618,1839,1671]} 1. e4 {[%emt 0:00:07]} e5 {[%emt 0:00:05]} 2. Nf3 {[%emt 0:00:06]} Nc6 {[%emt 0:00:06]} 3. Bc4 {[%emt 0:00:48]} Nf6 {[%emt 0:00:11]} 4. d3 {[%emt 0:00:39]} Bc5 {[%emt 0:00:29]} 5. c3 {[%emt 0:00:21]} d6 {[%emt 0:00:39]} 6. O-O {[%emt 0:05:15]} h6 {[%emt 0:01:06]} 7. a4 {[%emt 0:01:51] C54: Giuoco Piano: 4 c3 Nf6, main lines with 5 d4 and 5 d3.} a5 {[%emt 0:00:20] Prevents b4. The main line 7...a5 scores better than 7...a6.} 8. d4 {[%emt 0:16:13]} Bb6 {[%emt 0:00:06]} 9. dxe5 {[%emt 0:00:40] The position is equal.} Nxe5 {[%emt 0:01:05]} 10. Nxe5 {[%emt 0:00:17]} dxe5 {[%emt 0:00:05]} 11. Qxd8+ {[%emt 0:01:40]} Kxd8 {[%emt 0:00:03]} 12. Nd2 {[%emt 0:02:54][%cal Bb1d2,Bd2f3,Bf3e5,Be5c4][%mdl 32]} Ke7 {[%emt 0:09:40]} 13. Nf3 {[%emt 0:05:54]} Nxe4 {[%emt 0:03:53] next ...f6 is good for Black.} 14. Nxe5 {[%emt 0:02:27] [#]} Be6 $146 {[%emt 0:03:49]} (14... Kf6 {is interesting.} 15. Nd3 Rd8 16. Be3 Be6) ({Predecessor:} 14... Kf6 15. Nd3 Rd8 16. Nf4 Be6 17. Be2 Bb3 18. Ra3 Bd5 19. c4 Bc6 20. Rf3 Ke7 {0-1 (51) Perez,F (2536)-Perez Garcia,M (1578) LSS email 2016}) 15. Bxe6 {[%emt 0:01:35]} Kxe6 {[%emt 0:00:05]} 16. Nc4 {[%emt 0:00:14]} Bc5 {[%emt 0:01:16]} 17. Bf4 {[%emt 0:02:04]} c6 {[%emt 0:05:52]} 18. Rae1 {[%emt 0:03:02][%cal Ba1e1,Be1e4,Be4f4,Bf4f7][%mdl 32]} Kf5 {[%emt 0:00:34]} (18... f5 $11) 19. Be3 {[%emt 0:04:44]} ({White should try} 19. Be5 $1 $16 {And now g4+ would win.} Nf6 20. Bd6 Bxd6 21. Nxd6+ Kg6 22. Re7 (22. Nxb7 Rhb8 $11)) 19... Kf6 {[%emt 0:34:23]} (19... Kg6 $11 {remains equal.}) 20. Bd4+ $1 $16 {[%emt 0:05:46]} Bxd4 {[%emt 0:01:23]} 21. Rxe4 {[%emt 0:00:06]} ({Much worse is} 21. cxd4 $6 Ng5 $11) 21... Bc5 {[%emt 0:10:24]} 22. Rf4+ {[%emt 0:06:55]} Kg6 {[%emt 0:00:58]} 23. Ne5+ {[%emt 0:00:26]} Kh7 {[%emt 0:00:09]} 24. Rxf7 {[%emt 0:00:42]} Rhe8 {[%emt 0:00:38]} 25. Nd7 {[%emt 0:03:26]} (25. Nd3 $16 Re7 26. Rxe7 Bxe7 27. Re1) 25... Kg6 {[%emt 0:22:29]} (25... Kg8 $1 $14) 26. Rf3 $1 {[%emt 0:00:45]} Ba7 {[%emt 0:00:11]} 27. Rd1 {[%emt 0:00:46]} Re2 {[%emt 0:00:49]} 28. b3 {[%emt 0:01:57]} Rae8 {[%emt 0:00:33] ( -> ...Re1+)} 29. Rd6+ {[%emt 0:02:05]} Kh7 {[%emt 0:00:35][%cal Re2e1]} 30. g3 {[%emt 0:00:28]} Rc2 {[%emt 0:02:59] [#]} 31. Nf8+ $2 {[%emt 0:04:03] [#]} (31. Re6 $1 $16 {stays on course.} Rxe6 32. Nf8+ Kg8 33. Nxe6) 31... Kg8 $2 {[%emt 0:00:02]} (31... Rxf8 $1 $17 32. Rxf8 Bc5) 32. Ne6 {[%emt 0:00:16]} Re2 {[%emt 0:00:56]} 33. Nf4 {[%emt 0:01:49]} R2e7 {[%emt 0:00:24]} 34. h4 {[%emt 0:13:08][%cal Bh2h4,Bh4h5][%mdl 32]} Bc5 {[%emt 0:00:13]} 35. Rdd3 {[%emt 0:00:30]} Kh7 {[%emt 0:00:56]} (35... g5 $16 {was necessary.}) 36. h5 $18 {[%emt 0:01:16]} Rf7 {[%emt 0:00:31]} 37. Kg2 {[%emt 0:00:42]} b5 {[%emt 0:00:27]} 38. axb5 {[%emt 0:02:27]} cxb5 {[%emt 0:00:01]} 39. Rd5 {[%emt 0:00:19]} Rc7 {[%emt 0:00:24]} 40. Nd3 {[%emt 0:04:13]} Bf8 {[%emt 0:01:07]} 41. Rxb5 {[%emt 0:32:34] Strongly threatening Nb2.} Rxc3 {[%emt 0:30:14]} 42. Ne5 {[%emt 0:01:46]} Rc5 {[%emt 0:00:00]} 43. Rxc5 {[%emt 0:00:00]} Bxc5 {[%emt 0:00:00][%mdl 4096] Endgame KRB-KRN} 44. Ng6 {[%emt 0:00:00]} Ra8 {[%emt 0:00:00]} 45. Rf5 {[%emt 0:00:00]} Bb4 {[%emt 0:00:00]} 46. Rb5 {[%emt 0:00:00]} Rc8 {[%emt 0:00:00]} 47. f4 {[%emt 0:00:00]} Kg8 {[%emt 0:00:00]} 48. Ne5 {[%emt 0:07:57]} Kf8 {[%emt 0:00:00]} 49. Nc4 {[%emt 0:00:00]} Ra8 {[%emt 0:00:00]} 50. Kf3 {[%emt 0:03:27] White is more active.} Bc3 {[%emt 0:00:00]} 51. Nb6 {[%emt 0:00:00]} Ra7 {[%emt 0:00:54]} 52. Nd5 {[%emt 0:00:00]} Be1 {[%emt 0:00:49]} 53. Rb8+ {[%emt 0:00:00]} Kf7 {[%emt 0:00:05]} 54. Nb6 {[%emt 0:00:00]} Rc7 {[%emt 0:00:31]} 55. Nc4 {[%emt 0:00:00]} Bc3 {[%emt 0:04:57]} 56. Ra8 {[%emt 0:00:00]} (56. Ke4 $18) 56... Rc5 {[%emt 0:00:33] [#]} (56... Ke7 $16 57. g4 (57. Nxa5 Rc5 $16) 57... Rb7 58. Nxa5 Bxa5) 57. g4 $1 {[%emt 0:00:00]} Ke7 {[%emt 0:00:15]} 58. Ke4 {[%emt 0:00:00]} Rb5 {[%emt 0:00:33]} 59. Ra7+ {[%emt 0:00:00]} Kf8 {[%emt 0:00:02] [#]} 60. Kd3 $1 {[%emt 0:00:00]} Be1 {[%emt 0:00:28]} 61. Kc2 {[%emt 0:00:00] aiming for Ra8+.} Rd5 {[%emt 0:00:12]} 62. Rc7 {[%emt 0:00:00]} Rd4 {[%emt 0:01:03]} 63. Ne5 {[%emt 0:00:05]} Bg3 $2 {[%emt 0:02:12][%mdl 8192] This costs Black the game.} (63... Rd2+ $16 64. Kc1 Rd8) 64. Rc8+ {[%emt 0:00:05] White is clearly winning.} Ke7 {[%emt 0:00:00]} 65. Nc6+ {[%emt 0:00:00]} Kd7 {[%emt 0:00:00]} 66. Rd8+ {[%emt 0:00:00]} Kxc6 {[%emt 0:00:11]} 67. Rxd4 {[%emt 0:00:00] Weighted Error Value: White=0.14 (very precise) /Black=0.22 (precise)} 1-0